fUST/lending_fUST_20251028
["ID","MTS","AMOUNT","RATE_DAILY","PERIOD"]
[392511263,1761592238432,-17452.86880778,0.00014856,2]
[392511264,1761592238445,-577.3394874,0.00014856,2]
[392511285,1761592240640,-16321.61933848,0.00014856,2]
[392511432,1761592246489,-4099.19281003,0.00014856,2]
[392511433,1761592246500,-8217.84690091,0.00014861,2]
[392511434,1761592246511,-5240.146,0.00014861,2]
[392511435,1761592246523,-109649.3258172,0.00014861,2]
[392511437,1761592335170,292.78489527,0.00014761,2]
[392511438,1761592364607,-262.62914429,0.0001486,2]
[392511439,1761592374193,262.62914429,0.00014711,2]
[392511440,1761592439995,299444.58596044,0.00014756,2]
[392511441,1761592454753,533.004345,0.00030137,120]
[392511442,1761592506189,-300.0,0.00014754,2]
[392511443,1761592506217,-801.01563971,0.00014755,2]
[392511444,1761592506244,-801.01563971,0.00014755,2]
[392511445,1761592506270,-801.01563971,0.00014755,2]
[392511446,1761592506300,-801.01563971,0.00014755,2]
[392511447,1761592506328,-256.19162996,0.00014755,2]
[392511448,1761592506355,-801.01563971,0.00014755,2]
[392511449,1761592506384,-76.45470327,0.00014755,2]
[392511450,1761592506610,-724.56093644,0.00014755,2]
[392511451,1761592506640,-801.01563971,0.00014755,2]
[392511452,1761592506668,-801.01563971,0.00014755,2]
[392511453,1761592506698,-801.01563971,0.00014755,2]
[392511454,1761592506726,-801.01563971,0.00014755,2]
[392511455,1761592506756,-801.01563971,0.00014755,2]
[392511456,1761592506869,-801.01563971,0.00014755,2]
[392511457,1761592506899,-801.01563971,0.00014755,2]
[392511458,1761592506928,-801.01563971,0.00014755,2]
[392511459,1761592506962,-801.01563971,0.00014755,2]
[392511460,1761592506992,-801.01563971,0.00014755,2]
[392511461,1761592507022,-801.01563971,0.00014755,2]
[392511462,1761592508621,-801.01563971,0.00014755,2]
[392511463,1761592508653,-801.01563971,0.00014755,2]
[392511464,1761592508681,-801.01563971,0.00014755,2]
[392511465,1761592508711,-801.01563971,0.00014755,2]
[392511466,1761592508739,-811.0283352,0.00014755,2]
[392511467,1761592508770,-811.0283352,0.00014755,2]
[392511468,1761592508925,-811.0283352,0.00014755,2]
[392511469,1761592508954,-811.0283352,0.00014755,2]
[392511470,1761592508990,-811.0283352,0.00014755,2]
[392511471,1761592509022,-811.0283352,0.00014755,2]
[392511472,1761592509053,-811.0283352,0.00014755,2]
[392511473,1761592509082,-811.0283352,0.00014755,2]
[392511474,1761592562862,267.6699776,0.00014755,2]
[392511475,1761592562885,32.3300224,0.00014755,2]
[392511476,1761592576960,350.0,0.00014608,2]
[392511477,1761592591892,350.0,0.00014608,2]
[392511478,1761592599677,350.0,0.00014608,2]
[392511479,1761592603758,454.949911,0.00013699,2]
[392511481,1761592614883,700.0,0.00014608,2]
[392511482,1761592622224,300.0,0.00014755,2]
[392511483,1761592622712,700.0,0.00014608,2]
[392511484,1761592638172,350.0,0.00014608,2]
[392511485,1761592646181,350.0,0.00014608,2]
[392511486,1761592662467,350.0,0.00014608,2]
[392511487,1761592682278,300.0,0.00014755,2]
[392511488,1761592743208,300.0,0.00014755,2]
[392511489,1761592756727,350.0,0.00014608,2]
[392511490,1761592772595,350.0,0.00014608,2]
[392511491,1761592780450,350.0,0.00014608,2]
[392511492,1761592795299,350.0,0.00014608,2]
[392511493,1761592802126,300.0,0.00014755,2]
[392511494,1761592803324,350.0,0.00014608,2]
[392511495,1761592819709,350.0,0.00014608,2]
[392511496,1761592827591,350.0,0.00014608,2]
[392511497,1761592842739,350.0,0.00014608,2]
[392511498,1761592851589,350.0,0.00014608,2]
[392511499,1761592856515,-6563.32804044,0.00014756,2]
[392511500,1761592856619,-10000.01,0.00014756,2]
[392511501,1761592856750,-10000.01,0.00014756,2]
[392511502,1761592857755,-10000.01,0.00014756,2]
[392511503,1761592857795,-10000.01,0.00014756,2]
[392511504,1761592859329,-10000.01,0.00014756,2]
[392511505,1761592859628,-10000.01,0.00014756,2]
[392511506,1761592871097,-300.0,0.00014607,2]
[392511507,1761592871125,-300.0,0.00014755,2]
[392511508,1761592871154,-3992.02599912,0.00014756,2]
[392511509,1761592875751,815.95800176,0.0001466,2]
[392511510,1761592875776,248.15067506,0.0001466,2]
[392511511,1761592880161,500.0,0.00014755,2]
[392511512,1761592880192,500.0,0.00014755,2]
[392511513,1761592880227,500.0,0.00014755,2]
[392511514,1761592880258,500.0,0.00014755,2]
[392511515,1761592880289,500.0,0.00014755,2]
[392511516,1761592880328,500.0,0.00014755,2]
[392511517,1761592880359,500.0,0.00014755,2]
[392511518,1761592880391,500.0,0.00014755,2]
[392511519,1761592880423,500.0,0.00014755,2]
[392511520,1761592880469,266.94874878,0.00014755,2]
[392511521,1761592880504,560.54224829,0.00014755,2]
[392511522,1761592880537,500.0,0.00014755,2]
[392511523,1761592880568,500.0,0.00014755,2]
[392511524,1761592880619,500.0,0.00014755,2]
[392511525,1761592880672,500.0,0.00014755,2]
[392511526,1761592880713,500.0,0.00014755,2]
[392511527,1761592883836,1064.10867682,0.0001466,2]
[392511528,1761592891670,860.25965105,0.0001466,2]
[392511529,1761592891693,203.84902577,0.0001466,2]
[392511530,1761592899796,1064.10867682,0.0001466,2]
[392511531,1761592907453,1064.10867682,0.0001466,2]
[392511532,1761592915513,1064.10867682,0.0001466,2]
[392511533,1761592923376,1064.10867682,0.0001466,2]
[392511534,1761592931345,1064.10867682,0.0001466,2]
[392511535,1761592939153,1064.10867682,0.0001466,2]
[392511536,1761592947149,1064.10867682,0.0001466,2]
[392511537,1761592954995,335.61720494,0.0001466,2]
[392511538,1761592955550,869.21,0.00012329,2]
[392511539,1761592958704,1142.57303155,0.00014718,2]
[392511540,1761592958727,892.56931336,0.00014718,2]
[392511541,1761592963049,1064.10867682,0.0001466,2]
[392511542,1761592970835,1064.10867682,0.0001466,2]
[392511543,1761592986510,1064.10867682,0.0001466,2]
[392511544,1761592994948,1064.10867682,0.0001466,2]
[392511545,1761593010100,1064.10867682,0.00014683,2]
[392511546,1761593018015,1064.10867682,0.00014683,2]
[392511547,1761593023556,315.67078922,0.00014708,2]
[392511548,1761593033973,1064.10867682,0.00014683,2]
[392511549,1761593041746,1064.10867682,0.00014683,2]
[392511550,1761593052653,159.89,0.00012329,2]
[392511551,1761593056909,119.01048286,0.00014683,2]
[392511552,1761593056932,945.09819396,0.00014683,2]
[392511553,1761593063411,799.46,0.00012329,2]
[392511554,1761593064729,1064.10867682,0.00014683,2]
[392511555,1761593074104,893.61,0.00012329,2]
[392511556,1761593079886,1064.10867682,0.00014683,2]
[392511557,1761593087650,1064.10867682,0.00014683,2]
[392511558,1761593102778,1064.10867682,0.00014683,2]
[392511574,1761593130016,-782.80093451,0.00014683,2]
[392511576,1761593176277,-214.66511427,0.00014421,2]
[392511577,1761593176301,-156.28004583,0.00014683,2]
[392511583,1761593325602,2346.03486616,0.0001,2]
[392511584,1761593354637,-300.00164971,0.00014607,2]
[392511585,1761593356989,-166.00000003,0.00014607,2]
[392511586,1761593409656,-33.99835026,0.00014607,2]
[392511587,1761593427339,500.0,0.00014607,2]
[392511665,1761593433068,-500.0,0.00014755,2]
[392511667,1761593433078,-1064.10867682,0.00014793,2]
[392511669,1761593433088,-250.82411735,0.00014965,2]
[392511720,1761593438664,-49.17588265,0.00014965,2]
[392511721,1761593438674,-500.83228364,0.00014966,2]
[392511722,1761593438684,-395.61580537,0.00014966,2]
[392511723,1761593438695,-58.76512633,0.00014966,2]
[392511724,1761593438707,-415.3402902,0.00014966,2]
[392511725,1761593438717,-567.92008855,0.00014966,2]
[392511726,1761593438727,-567.92008855,0.00014966,2]
[392511727,1761593438736,-68.20525663,0.00014966,2]
[392511728,1761593438751,-111.12888434,0.00014966,2]
[392511729,1761593438761,-567.92008855,0.00014966,2]
[392511730,1761593438771,-521.08101745,0.00014966,2]
[392511756,1761593441035,-3e-08,0.00014966,2]
[392511793,1761593443867,-46.83907107,0.00014966,2]
[392511794,1761593443876,-567.92008855,0.00014966,2]
[392511795,1761593443885,-567.92008855,0.00014966,2]
[392511796,1761593443895,-567.92008855,0.00014966,2]
[392511797,1761593443905,-567.92008855,0.00014966,2]
[392511798,1761593443914,-567.92008855,0.00014966,2]
[392511799,1761593443924,-567.92008855,0.00014966,2]
[392511800,1761593443934,-567.92008855,0.00014966,2]
[392511801,1761593443944,-536.23094709,0.00014966,2]
[392511845,1761593446607,782.80093451,0.00014606,2]
[392511864,1761593446786,-153.58003285,0.00014868,2]
[392511866,1761593446796,-31.68914146,0.00014966,2]
[392511868,1761593446806,-567.92008855,0.00014966,2]
[392511870,1761593446815,-567.92008855,0.00014966,2]
[392511872,1761593446825,-567.92008855,0.00014966,2]
[392511874,1761593446834,-567.92008855,0.00014966,2]
[392511875,1761593446843,-567.92008855,0.00014966,2]
[392511876,1761593446853,-567.92008855,0.00014966,2]
[392511877,1761593446863,-412.64728506,0.00014966,2]
[392511895,1761593489501,-222.72312098,0.00014669,2]
[392511896,1761593492693,-179.92841111,0.00014669,2]
[392511898,1761593588449,205.74842588,0.00014507,2]
[392511899,1761593687658,1042.82650329,0.00014579,2]
[392511900,1761593709893,1042.82650329,0.00014579,2]
[392511901,1761593732683,1042.82650329,0.00014579,2]
[392511902,1761593738386,156.47,0.00012329,2]
[392511903,1761593749121,782.39,0.00012329,2]
[392511904,1761593749837,637.129992,0.00013879,2]
[392511905,1761593755461,1042.82650329,0.00014579,2]
[392511906,1761593778167,1042.82650329,0.00014579,2]
[392511907,1761593801234,1042.82650329,0.00014579,2]
[392511908,1761593824001,1042.82650329,0.00014579,2]
[392511909,1761593840972,300.0,0.000146,2]
[392511910,1761593846997,1042.82650329,0.00014579,2]
[392511911,1761593851594,300.0,0.000146,2]
[392511912,1761593858064,152.1,0.0001469,2]
[392511913,1761593861892,300.0,0.000146,2]
[392511914,1761593869012,1042.82650329,0.00014579,2]
[392511915,1761593869782,-224.10151534,0.00014727,2]
[392511916,1761593891590,72.13448497,0.00014579,2]
[392511917,1761593891614,746.59050298,0.00014579,2]
[392511918,1761593913826,818.72498795,0.00014579,2]
[392511919,1761593936192,818.72498795,0.00014579,2]
[392511920,1761593951703,2034.80968811,0.00014654,2]
[392511921,1761593958334,818.72498795,0.00014579,2]
[392511922,1761593980653,1038.34447298,0.00014608,2]
[392511923,1761593987408,164.0,8.3e-07,2]
[392511924,1761594002953,535.42254439,0.00014608,2]
[392511942,1761594324032,165.0,8.3e-07,2]
[392511943,1761594325067,165.0,8.3e-07,2]
[392511944,1761594326112,165.0,8.3e-07,2]
[392511945,1761594337760,597.67,0.00012329,2]
[392511947,1761594348280,498.06,0.00012329,2]
[392511950,1761594358757,760.92,0.00012329,2]
[392511952,1761594369401,728.58,0.00012329,2]
[392511954,1761594380358,166.8,0.00012329,2]
[392511959,1761594596406,353.1180457,0.00013823,2]
[392511960,1761594617553,834.01,0.00012329,2]
[392511990,1761594631911,-868.58672804,0.00014761,2]
[392511992,1761594631923,-655.3531192,0.00014761,2]
[392511994,1761594631934,-2063.48969503,0.00014761,2]
[392511996,1761594631944,-300.0,0.00014766,2]
[392511998,1761594631953,-240.38133141,0.00014767,2]
[392512002,1761594631974,-797.96314157,0.00014767,2]
[392512004,1761594631983,-213.984633,0.00014784,2]
[392512006,1761594631992,-3642.5527877,0.00014785,2]
[392512008,1761594632001,-151.0,0.00014854,2]
[392512010,1761594632010,-151.0,0.00014854,2]
[392512012,1761594632019,-151.0,0.00014854,2]
[392512014,1761594632028,-151.0,0.00014854,2]
[392512016,1761594632038,-233.08885285,0.00014854,2]
[392512017,1761594632047,-50000.0,0.00014861,2]
[392512020,1761594632056,-500.0,0.00014861,2]
[392512023,1761594632065,-500.0,0.00014861,2]
[392512025,1761594632075,-450.0,0.00014861,2]
[392512027,1761594632084,-500.0,0.00014861,2]
[392512029,1761594632093,-500.0,0.00014861,2]
[392512031,1761594632102,-237.28849887,0.00014861,2]
[392512033,1761594632111,-236.00346444,0.00014861,2]
[392512035,1761594632120,-500.0,0.00014861,2]
[392512037,1761594632130,-279.10285633,0.00014861,2]
[392512039,1761594632139,-500.0,0.00014861,2]
[392512041,1761594632149,-500.0,0.00014861,2]
[392512043,1761594632158,-500.0,0.00014861,2]
[392512045,1761594632166,-500.0,0.00014861,2]
[392512047,1761594632176,-500.0,0.00014861,2]
[392512049,1761594632185,-500.0,0.00014861,2]
[392512050,1761594632194,-500.0,0.00014861,2]
[392512053,1761594632203,-500.0,0.00014861,2]
[392512055,1761594632213,-500.0,0.00014861,2]
[392512057,1761594632222,-500.0,0.00014861,2]
[392512059,1761594632234,-500.0,0.00014861,2]
[392512060,1761594632243,-500.0,0.00014861,2]
[392512061,1761594632252,-500.0,0.00014861,2]
[392512062,1761594632262,-500.0,0.00014861,2]
[392512063,1761594632273,-500.0,0.00014861,2]
[392512064,1761594632283,-500.0,0.00014861,2]
[392512065,1761594632292,-500.0,0.00014861,2]
[392512066,1761594632302,-419.11199787,0.00014861,2]
[392512067,1761594632312,-500.0,0.00014861,2]
[392512068,1761594632322,-500.0,0.00014861,2]
[392512069,1761594632333,-500.0,0.00014861,2]
[392512070,1761594632343,-500.0,0.00014861,2]
[392512071,1761594632353,-500.0,0.00014861,2]
[392512072,1761594632363,-213990.84063963,0.00014863,2]
[392512098,1761594637808,-3587.42954227,0.00014763,2]
[392512100,1761594637818,-475.99496783,0.00014764,2]
[392512103,1761594637828,-3111.43457444,0.00014764,2]
[392512105,1761594637838,-3587.42954227,0.00014766,2]
[392512107,1761594637847,-8529.5924204,0.00014863,2]
[392512109,1761594637857,-8492.39584171,0.00014863,2]
[392512120,1761594640036,-649.07528219,0.00014767,2]
[392512121,1761594640087,-2938.35426008,0.00014767,2]
[392512122,1761594640098,-4627.17236479,0.00014863,2]
[392512123,1761594640141,-7456.99890206,0.00014863,2]
[392512124,1761594640154,-17131.0401108,0.00014863,2]
[392512181,1761594643063,-52682.99141256,0.00014863,2]
[392512184,1761594645979,-4829.22492376,0.00014863,2]
[392512186,1761594674627,-278.8615398,0.0001471,2]
[392512188,1761594726719,1034.15669316,0.00014649,2]
[392512189,1761594886095,500.0,0.00014636,2]
[392512190,1761594903386,1029.7207947,0.00013872,2]
[392512191,1761594908750,500.0,0.00014636,2]
[392512192,1761594932295,500.0,0.00014636,2]
[392512193,1761594954879,500.0,0.00014636,2]
[392512194,1761594977198,638.90540692,0.00014614,2]
[392512195,1761595000159,374.75118831,0.00014614,2]
[392512205,1761595271404,488.31787121,0.00013861,2]
[392512206,1761595271428,510.68212879,0.00013861,2]
[392512209,1761595423086,589.637534,0.00013699,2]
[392512210,1761595545267,399.753258,0.00030137,120]
[392512219,1761595631261,-1022.24865104,0.00014762,2]
[392512220,1761595652240,-8595.10759285,0.00014763,2]
[392512221,1761595658187,-3994.29917532,0.00014676,2]
[392512222,1761595658211,-2011.41164936,0.00014676,2]
[392512223,1761595661321,-171.64296738,0.00014676,2]
[392512224,1761595766618,205.74842588,0.00014662,2]
[392512274,1761595832235,-300.0,0.00014762,2]
[392512276,1761595832244,-228.94593453,0.00014762,2]
[392512278,1761595832254,-281577.00132231,0.00014763,2]
[392512280,1761595832264,-5373.44203825,0.00014763,2]
[392512411,1761595840117,-60302.03906251,0.00014763,2]
[392512450,1761595843203,-437.01471353,0.00014763,2]
[392512461,1761595979581,-262.62914429,0.00014762,2]
[392512473,1761596770197,318.564996,0.00013861,2]
[392514015,1761597032268,-261.71945408,0.00014722,2]
[392514016,1761597032278,-1045.83093849,0.00014722,2]
[392514017,1761597032287,-201.53029115,0.00014722,2]
[392514018,1761597032298,-325.77305974,0.00014762,2]
[392514019,1761597032334,-626.80740713,0.00014762,2]
[392514027,1761597038208,-134.92734962,0.00014762,2]
[392514028,1761597038217,-400.93585793,0.00014881,2]
[392514029,1761597038228,-300.0,0.00014881,2]
[392514031,1761597038238,-1538.02718512,0.00014882,2]
[392514036,1761597038322,-31379.28767602,0.00014882,2]
[392514037,1761597038332,-1000.0,0.00014882,2]
[392514038,1761597038342,-252.39605585,0.00014882,2]
[392514039,1761597038351,-250.0,0.00014882,2]
[392514040,1761597038361,-223.39491623,0.00014882,2]
[392514041,1761597038371,-250.0,0.00014882,2]
[392514042,1761597038380,-250.0,0.00014882,2]
[392514043,1761597038389,-250.0,0.00014882,2]
[392514044,1761597038399,-208.0,0.00014882,2]
[392514045,1761597038407,-191.87295522,0.00014882,2]
[392514046,1761597038417,-194.5303871,0.00014882,2]
[392514047,1761597038426,-500.0,0.0001489,2]
[392514048,1761597038435,-500.0,0.0001489,2]
[392514049,1761597038445,-155.21825853,0.000149,2]
[392514050,1761597038455,-500.05928947,0.00014918,2]
[392514051,1761597038464,-160.0,0.00015,2]
[392514052,1761597038475,-175.692776,0.00015068,2]
[392514053,1761597038484,-217.2,0.00015095,2]
[392514054,1761597038494,-1788.93513928,0.00015157,2]
[392514055,1761597038503,-300.0,0.00015257,2]
[392514056,1761597038512,-66.2203518,0.00015257,2]
[392514057,1761597038525,-233.7796482,0.00015257,2]
[392514058,1761597038534,-300.0,0.00015257,2]
[392514059,1761597038544,-300.0,0.00015257,2]
[392514060,1761597038553,-300.0,0.00015257,2]
[392514061,1761597038563,-300.0,0.00015257,2]
[392514062,1761597038572,-300.0,0.00015257,2]
[392514063,1761597038582,-300.0,0.00015257,2]
[392514064,1761597038591,-300.0,0.00015257,2]
[392514065,1761597038601,-300.0,0.00015257,2]
[392514066,1761597038610,-300.0,0.00015257,2]
[392514067,1761597038620,-300.0,0.00015257,2]
[392514068,1761597038629,-300.0,0.00015257,2]
[392514069,1761597038639,-300.0,0.00015257,2]
[392514070,1761597038649,-300.0,0.00015257,2]
[392514071,1761597038659,-600.0,0.00015257,2]
[392514072,1761597038668,-260.04197632,0.0001543,2]
[392514073,1761597038678,-501.34723722,0.00015497,2]
[392514074,1761597038687,-212.23166411,0.000155,2]
[392514075,1761597038696,-500.0,0.00015753,2]
[392514076,1761597038706,-160.26215417,0.00015753,2]
[392514077,1761597038715,-500.0,0.00015753,2]
[392514078,1761597038726,-500.0,0.00015753,2]
[392514079,1761597038736,-500.0,0.00015753,2]
[392514080,1761597038746,-500.0,0.00015753,2]
[392514081,1761597038758,-500.0,0.00015753,2]
[392514082,1761597038768,-500.0,0.00015753,2]
[392514083,1761597038778,-500.0,0.00015753,2]
[392514084,1761597038787,-500.0,0.00015753,2]
[392514085,1761597038796,-500.0,0.00015753,2]
[392514086,1761597038807,-500.0,0.00015753,2]
[392514087,1761597038816,-500.0,0.00015753,2]
[392514088,1761597038826,-500.0,0.00015753,2]
[392514089,1761597038837,-1788.93513927,0.00015754,2]
[392514090,1761597038847,-213.77980355,0.00016,2]
[392514091,1761597038857,-420.0,0.00016288,2]
[392514092,1761597038867,-199.47023482,0.00016319,2]
[392514093,1761597038877,-1788.93513927,0.0001635,2]
[392514094,1761597038887,-412.0,0.00016438,2]
[392514095,1761597038896,-2122.0,0.00016572,2]
[392514096,1761597038906,-1283.25922346,0.00016762,2]
[392514097,1761597038915,-720.0,0.00016783,2]
[392514098,1761597038925,-1788.93513927,0.00016947,2]
[392514099,1761597038934,-250.0,0.00016978,2]
[392514100,1761597038944,-10762.22724597,0.0001699,2]
[392514104,1761597040475,-6699.19738977,0.0001699,2]
[392514105,1761597040513,-24453.36297135,0.0001699,2]
[392514106,1761597040569,-58085.21239291,0.0001699,2]
[392514107,1761597040579,-506.81,0.00016992,2]
[392514108,1761597040588,-403.5761775,0.00017054,2]
[392514110,1761597040597,-160.0,0.00017054,2]
[392514112,1761597040607,-180.00180002,0.00017227,2]
[392514114,1761597040616,-500.0,0.000174,2]
[392514116,1761597040625,-500.0,0.000174,2]
[392514118,1761597040634,-500.0,0.000174,2]
[392514119,1761597040643,-500.0,0.000174,2]
[392514120,1761597040652,-315.0,0.00017436,2]
[392514121,1761597040662,-1788.93513927,0.00017543,2]
[392514122,1761597040671,-51906.20536336,0.0001758,2]
[392514136,1761597046322,-3389.70000028,0.0001758,2]
[392514141,1761597135638,882.0,0.00030137,120]
[392514142,1761597135672,917.37957189,0.00030136,120]
[392514144,1761597330080,5000.0,0.00030137,120]
[392514146,1761597436853,5000.0,0.00030137,120]
[392514147,1761597454099,5000.0,0.00030137,120]
[392514148,1761597501943,5000.0,0.00030137,120]
[392514149,1761597536890,5000.0,0.00030137,120]
[392514150,1761597562108,2411.6,0.00030137,120]
[392514195,1761598236604,-999.0,0.00015943,2]
[392514196,1761598236613,-1040.09247569,0.00016014,2]
[392514197,1761598236623,-300.0,0.00016066,2]
[392514199,1761598236632,-300.0,0.00016067,2]
[392514201,1761598236642,-300.0,0.00016067,2]
[392514203,1761598236651,-300.0,0.00016067,2]
[392514205,1761598236660,-300.0,0.00016067,2]
[392514207,1761598236669,-300.0,0.00016067,2]
[392514209,1761598236678,-300.0,0.00016067,2]
[392514211,1761598236687,-300.0,0.00016067,2]
[392514212,1761598236696,-300.0,0.00016067,2]
[392514213,1761598236705,-300.0,0.00016067,2]
[392514214,1761598236714,-300.0,0.00016067,2]
[392514215,1761598236723,-300.0,0.00016067,2]
[392514216,1761598236733,-300.0,0.00016067,2]
[392514217,1761598236742,-300.0,0.00016067,2]
[392514219,1761598236751,-300.0,0.00016067,2]
[392514221,1761598236760,-300.0,0.00016067,2]
[392514223,1761598236769,-600.0,0.00016387,2]
[392514225,1761598236779,-166.48212896,0.0001689,2]
[392514227,1761598236787,-403.5761775,0.00017033,2]
[392514229,1761598236796,-181.3520247,0.00017076,2]
[392514231,1761598236805,-213.9846331,0.00017076,2]
[392514233,1761598236813,-500.0,0.00017479,2]
[392514235,1761598236822,-500.0,0.00017479,2]
[392514236,1761598236831,-500.0,0.00017479,2]
[392514237,1761598236840,-500.0,0.00017479,2]
[392514238,1761598236849,-500.0,0.00017479,2]
[392514239,1761598236858,-491.37788609,0.00017479,2]
[392514240,1761598236869,-8.62211391,0.00017479,2]
[392514241,1761598236878,-500.0,0.00017479,2]
[392514242,1761598236886,-500.0,0.00017479,2]
[392514243,1761598236895,-500.0,0.00017479,2]
[392514244,1761598236904,-500.0,0.00017479,2]
[392514245,1761598236913,-500.0,0.00017479,2]
[392514246,1761598236922,-500.0,0.00017479,2]
[392514248,1761598236931,-500.0,0.00017479,2]
[392514250,1761598236940,-500.0,0.00017479,2]
[392514252,1761598236949,-500.0,0.00017479,2]
[392514254,1761598236959,-500.0,0.00017479,2]
[392514256,1761598236968,-347.8881015,0.00017479,2]
[392514258,1761598236977,-500.0,0.00017479,2]
[392514260,1761598236988,-500.4099465,0.00017479,2]
[392514262,1761598236997,-50921.13324413,0.0001748,2]
[392514264,1761598237006,-420.0,0.00017564,2]
[392514266,1761598237015,-314.54,0.0001757,3]
[392514268,1761598237024,-157.27,0.0001757,3]
[392514270,1761598237034,-471.83,0.0001757,3]
[392514272,1761598237043,-8078.74933098,0.0001758,2]
[392514275,1761598237058,-739.23601403,0.0001758,2]
[392514357,1761598244705,-229400.0,0.0001758,2]
[392514368,1761598246881,-3538.19455488,0.0001758,2]
[392514369,1761598246901,-2571.29047449,0.0001758,2]
[392514383,1761598521805,560.155657,0.00013699,2]
[392514387,1761598945861,299.814943,0.00030137,120]
[392514389,1761599110437,921.15531092,0.0001825,9]
[392514404,1761599386523,1000.0,0.00015332,5]
[392514443,1761599431802,-150.0,0.00016528,7]
[392514445,1761599431811,-1019.29062618,0.00016545,2]
[392514447,1761599431820,-137.70456195,0.00016573,2]
[392514704,1761599445927,-25.4200318,0.00016573,2]
[392514705,1761599445943,-163.12459373,0.00016937,2]
[392514706,1761599445953,-152.278766,0.0001704,3]
[392514707,1761599445963,-163.12459373,0.000173,2]
[392514708,1761599445972,-166.48212894,0.0001739,2]
[392514709,1761599445982,-300.0,0.00017399,2]
[392514710,1761599445991,-16229.06988582,0.000174,2]
[392514711,1761599446005,-11454.0,0.000174,2]
[392514712,1761599446020,-1719.46,0.000174,2]
[392518548,1761600564028,30165.8011026,0.0001825,9]
[392518597,1761600631950,-855.25544936,0.00015143,2]
[392518604,1761600632012,-143.6493643,0.00015143,2]
[392518606,1761600632021,-412.0,0.0001691,2]
[392518608,1761600632030,-152.278766,0.0001704,3]
[392518610,1761600632039,-340.0783678,0.00017143,2]
[392518612,1761600632052,-838.62931232,0.00017143,2]
[392518614,1761600632061,-157.27,0.0001738,3]
[392518616,1761600632070,-471.81,0.0001738,3]
[392518618,1761600632079,-300.0,0.00017387,2]
[392518620,1761600632088,-300.0,0.00017387,2]
[392518622,1761600632097,-290.04958336,0.00017387,2]
[392518625,1761600632109,-9.95041664,0.00017387,2]
[392518627,1761600632118,-300.0,0.00017388,2]
[392518629,1761600632127,-1200.0,0.00017388,2]
[392518631,1761600632136,-150.00000066,0.00017389,2]
[392518633,1761600632146,-340.53757863,0.00017389,2]
[392518897,1761600637934,-21.66454002,0.00017389,2]
[392518899,1761600637944,-500.0,0.00017389,2]
[392518901,1761600637953,-500.0,0.00017389,2]
[392518903,1761600637962,-163.33545998,0.00017389,2]
[392518905,1761600637973,-336.66454002,0.00017389,2]
[392518906,1761600637982,-403.68240219,0.00017389,2]
[392518907,1761600637991,-238.53689841,0.00017389,2]
[392518956,1761600643075,-261.46310159,0.00017389,2]
[392518957,1761600643084,-500.0,0.00017389,2]
[392518958,1761600643094,-500.0,0.00017389,2]
[392518959,1761600643103,-500.0,0.00017389,2]
[392518960,1761600643113,-500.0,0.00017389,2]
[392518961,1761600643122,-500.0,0.00017389,2]
[392518962,1761600643131,-500.0,0.00017389,2]
[392518963,1761600643140,-500.0,0.00017389,2]
[392518964,1761600643149,-251.57817236,0.00017389,2]
[392518965,1761600643158,-500.0,0.00017389,2]
[392518966,1761600643168,-500.0,0.00017389,2]
[392518967,1761600643177,-560.42730792,0.00017389,2]
[392518968,1761600643186,-500.0,0.00017389,2]
[392518969,1761600643195,-500.0,0.00017389,2]